bitfinex/quotes_BTCUSD_20250204
["timestamp","ask_amount","ask_price","bid_price","bid_amount"]
[1738650442058,0.62392507,99109.0,99108.0,7e-08]
[1738650442271,0.43594483,99109.0,99108.0,7e-08]
[1738650442850,0.17917927,99109.0,99108.0,7e-08]
[1738650444036,0.160348,99109.0,99108.0,7e-08]
[1738650444279,0.151348,99109.0,99108.0,7e-08]
[1738650444510,0.151348,99109.0,99108.0,0.00100007]
[1738650444977,0.160348,99109.0,99108.0,7e-08]
[1738650445488,0.151348,99109.0,99108.0,0.00010697]
[1738650445629,0.154348,99109.0,99108.0,0.00010697]
[1738650447160,0.154348,99109.0,99108.0,0.00110697]
[1738650450685,0.21018815,99109.0,99108.0,0.00110697]
[1738650451293,0.154348,99109.0,99108.0,0.00110697]
[1738650453777,0.17311067,99109.0,99108.0,0.00110697]
[1738650458542,0.17333495,99109.0,99108.0,0.00110697]
[1738650459686,0.27572001,99109.0,99108.0,0.00110697]
[1738650460805,0.27572001,99109.0,99108.0,0.00010697]
[1738650461165,0.27572001,99109.0,99108.0,0.00110697]
[1738650461166,0.27272001,99109.0,99108.0,0.00110697]
[1738650461571,0.27672001,99109.0,99108.0,0.00110697]
[1738650468299,0.35642001,99109.0,99108.0,0.00110697]
[1738650472703,0.63588001,99109.0,99108.0,9.7e-07]
[1738650472959,2.16733296,99109.0,99108.0,9.7e-07]
[1738650473502,0.231069,99095.0,99094.0,0.0009335]
[1738650473674,0.38095406,99095.0,99094.0,0.0009335]
[1738650474018,1.88095406,99095.0,99094.0,0.0009335]
[1738650474445,1.89971673,99095.0,99094.0,0.0009335]
[1738650474652,2.1422049,99095.0,99094.0,5e-07]
[1738650474848,2.13307673,99095.0,99094.0,5e-07]
[1738650475073,2.05962288,99095.0,99094.0,5e-07]
[1738650475297,2.06562288,99095.0,99094.0,5e-07]
[1738650475435,0.28842288,99095.0,99094.0,5e-07]
[1738650475631,0.26366021,99095.0,99094.0,5e-07]
[1738650476057,0.27266021,99095.0,99094.0,5e-07]
[1738650476619,0.26366021,99095.0,99094.0,5e-07]
[1738650477095,0.27266021,99095.0,99094.0,5e-07]
[1738650477291,0.26366021,99095.0,99094.0,5e-07]
[1738650477801,0.27066021,99095.0,99094.0,5e-07]
[1738650478157,0.35827163,99095.0,99094.0,5e-07]
[1738650478603,0.27066021,99095.0,99094.0,5e-07]
[1738650481486,0.26366021,99095.0,99094.0,5e-07]
[1738650481690,1.85426021,99095.0,99094.0,5e-07]
[1738650481891,1.86326021,99095.0,99094.0,5e-07]
[1738650482096,1.85426021,99095.0,99094.0,5e-07]
[1738650482302,1.76366021,99095.0,99094.0,5e-07]
[1738650482826,0.160369,99095.0,99094.0,0.0001073]
[1738650483247,0.26275406,99095.0,99094.0,0.0001073]
[1738650483602,0.26975406,99095.0,99094.0,0.0001073]
[1738650483810,0.26275406,99095.0,99094.0,0.0001073]
[1738650483987,0.2796018,99095.0,99094.0,0.0001073]
[1738650484409,0.2806018,99095.0,99094.0,0.0001073]
[1738650484609,0.37019601,99095.0,99094.0,0.0001073]
[1738650484809,0.36919601,99095.0,99094.0,0.0001073]
[1738650485170,0.35034827,99095.0,99094.0,0.0001073]
[1738650485411,0.26075406,99095.0,99094.0,0.0001073]
[1738650486710,1.76075406,99095.0,99094.0,0.0001073]
[1738650489642,0.26075406,99095.0,99094.0,0.0001073]
[1738650489843,0.25375406,99095.0,99094.0,0.0001073]
[1738650490103,0.26275406,99095.0,99094.0,0.0001073]
[1738650490428,1.80530827,99095.0,99094.0,0.0001073]
[1738650490596,1.81430827,99095.0,99094.0,0.0001073]
[1738650490806,1.76975406,99095.0,99094.0,0.0001073]
[1738650491010,1.76075406,99095.0,99094.0,0.0001073]
[1738650491539,1.76175406,99095.0,99094.0,0.0001073]
[1738650491747,1.75475406,99095.0,99094.0,0.0001073]
[1738650492069,1.75375406,99095.0,99094.0,0.0001073]
[1738650493494,1.77175406,99095.0,99094.0,0.0001073]
[1738650493694,1.76275406,99095.0,99094.0,0.0001073]
[1738650494277,1.76075406,99095.0,99094.0,0.0001073]
[1738650494460,1.76197856,99095.0,99094.0,0.0001073]
[1738650495085,0.1595935,99095.0,99094.0,0.0001073]
[1738650495453,0.0082245,99095.0,99094.0,0.0001073]
[1738650495933,0.11060956,99095.0,99094.0,0.0001073]
[1738650496148,0.16792084,99095.0,99094.0,0.0001073]
[1738650496554,0.16092084,99095.0,99094.0,0.0001073]
[1738650496996,0.31828984,99095.0,99094.0,0.0001073]
[1738650497527,0.31928984,99095.0,99094.0,0.0001073]
[1738650497735,2.04098984,99095.0,99094.0,0.0001073]
[1738650497960,2.04698984,99095.0,99094.0,0.0001073]
[1738650498172,2.13834865,99095.0,99094.0,0.0001073]
[1738650498382,2.17774865,99095.0,99094.0,3e-07]
[1738650498873,2.20818181,99095.0,99094.0,3e-07]
[1738650499117,2.04020939,99095.0,99094.0,3e-07]
[1738650499387,2.24020939,99095.0,99094.0,3e-07]
[1738650499813,2.24720939,99095.0,99094.0,3e-07]
[1738650500020,2.24020939,99095.0,99094.0,3e-07]
[1738650500223,2.29541338,99095.0,99094.0,3e-07]
[1738650500420,0.151392,99080.0,99079.0,0.0001069]
[1738650500623,0.25377706,99080.0,99079.0,0.0001069]
[1738650500965,0.25377706,99080.0,99016.0,0.283186]
[1738650500966,0.151432,99054.0,99016.0,0.283186]
[1738650501166,0.25381706,99054.0,99030.0,0.201958]
[1738650501366,0.25381706,99054.0,99021.0,0.00134282]
[1738650501367,0.25381706,99054.0,99028.0,0.151471]
[1738650501607,1.75428631,99054.0,99031.0,0.151467]
[1738650501808,1.75428631,99054.0,99030.0,0.151468]
[1738650502226,1.75428631,99054.0,99024.0,0.00134283]
[1738650502227,1.75428631,99054.0,99024.0,0.15134283]
[1738650502422,1.75428631,99054.0,99053.0,0.0012]
[1738650502869,1.7731419,99054.0,99053.0,0.0012]
[1738650503274,1.7751419,99054.0,99053.0,0.0012]
[1738650503606,0.2751419,99054.0,99053.0,0.0012]
[1738650504029,0.18241703,99054.0,99053.0,0.0012]
[1738650504653,0.28480209,99054.0,99053.0,0.0012]
[1738650505143,0.3536632,99054.0,99053.0,0.0012]
[1738650505345,0.4004632,99054.0,99053.0,0.0012]
[1738650506050,1.8984632,99054.0,99053.0,0.0012]
[1738650506262,2.0484632,99054.0,99053.0,0.0013069]
[1738650506459,2.0574632,99054.0,99053.0,0.0013069]
[1738650506636,1.99559839,99054.0,99053.0,0.0013069]
[1738650506816,2.01859839,99054.0,99053.0,0.0013069]
[1738650507012,2.02759839,99054.0,99053.0,0.0003069]
[1738650507244,0.15,99049.0,99048.0,4.7e-07]
[1738650507375,0.151483,99021.0,99011.0,0.02]
[1738650507582,0.25386806,99021.0,99011.0,0.02]
[1738650507783,1.75386806,99021.0,99011.0,0.02]
[1738650508201,1.77272365,99021.0,99011.0,0.02]
[1738650508616,1.77319261,99021.0,99011.0,0.02]
[1738650508827,1.92319261,99021.0,99011.0,0.02]
[1738650509246,1.93285279,99021.0,99011.0,0.02]
[1738650509707,1.93967831,99021.0,99011.0,0.02]
[1738650509945,2.04217303,99021.0,99011.0,0.02]
[1738650510101,2.05117303,99021.0,99011.0,0.02]
[1738650510300,1.97167831,99021.0,99011.0,0.02]
[1738650510684,1.77167831,99021.0,99011.0,0.02]
[1738650510888,1.91416131,99021.0,99020.0,6e-07]
[1738650511146,0.173,99020.0,99011.0,0.0199606]
[1738650511341,0.301496,99012.0,99011.0,0.0199606]
[1738650511543,0.41106899,99012.0,99011.0,0.0199606]
[1738650511742,1.91106899,99012.0,99011.0,0.0199606]
[1738650512293,1.93406899,99012.0,99011.0,0.0199606]
[1738650512491,1.98295157,99012.0,99011.0,0.0199606]
[1738650512736,2.08544629,99012.0,99011.0,0.0199606]
[1738650513559,2.13484629,99012.0,99011.0,0.0199606]
[1738650513820,2.54724629,99012.0,99011.0,0.0199606]
[1738650514020,2.44475157,99012.0,99011.0,0.0199606]
[1738650514219,2.64475157,99012.0,99011.0,0.0199606]
[1738650514419,2.63575157,99012.0,99011.0,0.0199606]
[1738650514625,2.64475157,99012.0,99011.0,0.0199606]
[1738650514831,2.65375157,99012.0,99011.0,0.0199606]
[1738650515025,2.75033831,99012.0,99011.0,0.0199606]
[1738650515247,2.74133831,99012.0,99011.0,0.0199606]
[1738650515451,2.75933831,99012.0,99011.0,0.0199606]
[1738650515654,2.74133831,99012.0,99011.0,0.01094643]
[1738650515876,0.301501,99009.0,98977.0,0.0112977]
[1738650516082,0.44396022,99009.0,99008.0,8e-07]
[1738650516300,0.311518,98998.0,98977.0,0.0112977]
[1738650516502,0.161522,98995.0,98993.0,1e-07]
[1738650516749,1.91975922,98994.0,98993.0,1e-07]
[1738650517201,1.93861481,98994.0,98993.0,1e-07]
[1738650518192,1.93861481,98994.0,98953.0,9e-07]
[1738650518193,0.427285,98954.0,98953.0,9e-07]
[1738650518397,0.46255006,98954.0,98953.0,9e-07]
[1738650518604,0.16161,98938.0,98921.0,0.0024513]
[1738650518821,0.151634,98922.0,98921.0,0.0024513]
[1738650519022,0.151634,98922.0,98911.0,0.00145145]
[1738650519023,0.16,98921.0,98911.0,1e-07]
[1738650519226,0.16,98921.0,98870.0,0.0759]
[1738650519227,0.324653,98910.0,98870.0,0.0759]
[1738650519431,0.40403806,98910.0,98870.0,0.0759]
[1738650519659,0.25403806,98910.0,98871.0,0.00134505]
[1738650519838,0.40403806,98910.0,98870.0,0.0759]
[1738650520037,0.42289365,98910.0,98873.0,0.202279]
[1738650520220,0.42289365,98910.0,98870.0,0.0759]
[1738650520221,0.42289365,98910.0,98878.0,0.00134495]
[1738650520428,0.02889838,98910.0,98878.0,0.00134495]
[1738650520621,0.02889838,98910.0,98901.0,0.151666]
[1738650520945,0.01904279,98910.0,98891.0,0.202242]
[1738650521100,0.01904279,98910.0,98895.0,0.2055535]
[1738650521299,0.01004279,98910.0,98898.0,0.15167]
[1738650521510,0.202178,98923.0,98899.0,0.151669]
[1738650521709,0.008,98910.0,98902.0,0.202219]
[1738650522051,0.202152,98936.0,98902.0,0.202219]
[1738650522052,0.00998159,98925.0,98906.0,0.0789]
[1738650522253,0.151634,98923.0,98906.0,0.230557]
[1738650522471,0.10238506,98925.0,98906.0,0.0789]
[1738650522472,0.04561881,98922.0,98906.0,0.0789]
[1738650522676,0.04561881,98922.0,98914.0,0.151646]
[1738650522855,0.10238506,98925.0,98914.0,0.151646]
[1738650523063,0.10238506,98925.0,98906.0,0.0789]
[1738650523428,0.10238506,98925.0,98914.0,0.151645]
[1738650523546,0.15046839,98938.0,98911.0,0.2022]
[1738650523753,0.15,98936.0,98910.0,0.00134459]
[1738650524014,0.10238506,98935.0,98923.0,0.151632]
[1738650524144,0.151628,98926.0,98916.0,0.151642]
[1738650524348,0.01018219,98938.0,98906.0,0.0789]
[1738650524576,0.01018219,98938.0,98910.0,0.10372954]
[1738650524793,0.01018219,98938.0,98933.0,0.151617]
[1738650524993,0.01018219,98938.0,98910.0,0.10238506]
[1738650525196,0.10238506,98922.0,98895.0,0.0033205]
[1738650525399,0.151652,98911.0,98895.0,0.0033205]
[1738650525764,0.25372949,98910.0,98895.0,0.0033205]
[1738650525965,1.77538506,98910.0,98895.0,0.0033205]
[1738650526209,1.75238506,98910.0,98895.0,0.0033205]
[1738650526603,1.60238506,98910.0,98895.0,0.0033205]
[1738650526804,1.62098285,98910.0,98895.0,0.0033205]
[1738650527228,1.62098285,98910.0,98909.0,0.0173769]
[1738650527444,1.52855856,98910.0,98909.0,0.0173769]
[1738650527639,0.02855856,98910.0,98909.0,0.0173769]
[1738650527842,0.01859779,98910.0,98909.0,0.0173769]
[1738650528017,0.02259779,98910.0,98909.0,0.0173769]
[1738650528592,0.004,98910.0,98909.0,0.0173769]
[1738650529158,0.151644,98916.0,98909.0,0.0173769]
[1738650529330,0.00976023,98920.0,98909.0,0.0163769]
[1738650529533,0.151645,98915.0,98909.0,0.0163769]
[1738650529725,0.24066269,98915.0,98909.0,0.0183769]
[1738650530134,0.151649,98913.0,98909.0,0.0163769]
[1738650530342,0.08901769,98915.0,98909.0,0.0164839]
[1738650530560,0.08901769,98915.0,98909.0,0.0184839]
[1738650531022,0.08901769,98915.0,98909.0,0.0164839]
[1738650531281,0.09001769,98915.0,98909.0,0.0164839]
[1738650531513,0.24166369,98915.0,98909.0,0.0164839]
[1738650531764,1.5,98914.0,98909.0,0.0164839]
[1738650532269,1.5,98914.0,98906.0,0.151657]
[1738650532530,1.5,98914.0,98909.0,0.002]
[1738650532775,1.5,98914.0,98911.0,0.151651]
[1738650532998,0.001,98915.0,98900.0,0.202223]
[1738650533245,0.001,98915.0,98894.0,0.202342]
[1738650533246,0.001,98915.0,98909.0,0.002]
[1738650533467,0.08898048,98911.0,98910.0,0.151653]
[1738650534202,0.08898048,98911.0,98909.0,0.151653]
[1738650534436,0.08898048,98911.0,98909.0,0.25403806]
[1738650534983,0.08898048,98911.0,98896.0,0.404464]
[1738650535265,0.08998048,98911.0,98897.0,0.10238506]
[1738650535503,0.2,98963.0,98918.0,0.0801]
[1738650535504,0.019516,98952.0,98918.0,0.0801]
[1738650535736,0.019516,98952.0,98937.0,0.151611]
[1738650536226,0.00969955,98949.0,98937.0,0.151611]
[1738650537153,0.151609,98939.0,98937.0,0.002]
[1738650537384,0.151598,98946.0,98937.0,0.002]
[1738650537630,0.00969955,98949.0,98936.0,0.151611]
[1738650537856,0.00969955,98949.0,98937.0,0.002]
[1738650538120,1.5,98945.0,98937.0,0.002]
[1738650538874,0.202131,98946.0,98937.0,0.002]
[1738650539070,0.151601,98944.0,98935.0,0.151614]
[1738650539249,0.151597,98947.0,98937.0,0.151611]
[1738650539476,0.151597,98947.0,98937.0,0.002]
[1738650539477,0.151601,98944.0,98937.0,0.002]
[1738650539593,0.202128,98947.0,98937.0,0.002]
[1738650539834,0.202089,98967.0,98937.0,0.10438506]
[1738650540063,0.151589,98952.0,98937.0,0.10238506]
[1738650540272,0.040426,98994.0,98960.0,0.15]
[1738650540483,0.2,99004.0,98978.0,0.01]
[1738650540678,0.2,99004.0,98960.0,0.27004801]
[1738650540679,0.02,99003.0,98979.0,0.1037284]
[1738650541008,0.2,99004.0,98979.0,0.10238506]
[1738650541009,0.202027,98997.0,98979.0,0.10238506]
[1738650541245,0.15,99020.0,98977.0,0.202065]
[1738650541493,0.00988806,99004.0,98955.0,0.01]
[1738650541673,0.151551,98977.0,98961.0,0.08]
[1738650541871,0.151557,98973.0,98960.0,4.707e-05]
[1738650542074,0.151547,98979.0,98968.0,0.151562]
[1738650542276,0.202066,98978.0,98961.0,0.151574]
[1738650542451,0.15,98997.0,98960.0,4.707e-05]
[1738650542633,0.22688506,99003.0,98960.0,0.00104707]
[1738650542634,0.202076,98973.0,98960.0,0.00104707]
[1738650542832,0.20207,98976.0,98960.0,0.00104707]
[1738650543132,0.15,98992.0,98960.0,0.00104707]
[1738650543133,1.50134443,98975.0,98960.0,4.707e-05]
[1738650543339,0.151566,98967.0,98960.0,4.707e-05]
[1738650543778,0.151567,98966.0,98960.0,4.707e-05]
[1738650543981,0.151565,98968.0,98960.0,4.707e-05]
[1738650544112,0.202077,98972.0,98960.0,4.707e-05]
[1738650544325,1.57206706,98975.0,98960.0,0.00104707]
[1738650544521,0.151574,98962.0,98960.0,0.00104707]
[1738650545512,0.151574,98962.0,98960.0,4.707e-05]
[1738650545893,0.04881579,98961.0,98960.0,0.00204707]
[1738650546322,0.04881579,98961.0,98960.0,4.707e-05]
[1738650546708,0.04881579,98961.0,98960.0,0.00104707]
[1738650547050,0.05895968,98961.0,98960.0,4.707e-05]
[1738650547482,0.05895968,98961.0,98960.0,0.00104707]
[1738650547923,0.05995968,98961.0,98960.0,0.00104707]
[1738650548127,0.02991919,98961.0,98960.0,0.00104707]
[1738650551143,0.0197753,98961.0,98960.0,0.15262307]
[1738650551622,0.0197753,98961.0,98960.0,0.33660813]
[1738650551986,0.001,98961.0,98960.0,0.33660813]
[1738650552189,0.01004678,98981.0,98975.0,0.20207]
[1738650552416,0.01004678,98981.0,98970.0,0.202079]
[1738650552417,0.0187753,98984.0,98983.0,0.151541]
[1738650552618,0.0187753,98984.0,98983.0,0.15288453]
[1738650552841,0.0187753,98984.0,98972.0,0.15]
[1738650553069,0.606048,99002.0,98972.0,0.15]
[1738650553308,0.1558282,99001.0,98961.0,0.10238506]
[1738650553517,0.151542,98983.0,98972.0,0.151557]
[1738650553810,0.151538,98985.0,98974.0,0.151553]
[1738650553931,0.009,98984.0,98983.0,0.001]
[1738650554330,0.009,98984.0,98983.0,0.152541]
[1738650555219,0.00999226,98995.0,98971.0,0.15]
[1738650555452,0.00999226,98995.0,98972.0,0.30580555]
[1738650555578,0.202016,99002.0,98972.0,0.30680555]
[1738650555782,0.20202,99000.0,98985.0,0.151537]
[1738650556012,0.151523,98995.0,98986.0,0.151535]
[1738650556211,0.202016,99002.0,98972.0,0.10372855]
[1738650556408,0.202016,99002.0,98983.0,0.001]
[1738650556833,0.15153,98991.0,98982.0,0.151542]
[1738650557045,0.151525,98994.0,98985.0,0.151537]
[1738650557242,0.20202,99000.0,98989.0,0.151531]
[1738650557448,0.15152,98997.0,98989.0,0.151531]
[1738650557803,0.151522,98996.0,98987.0,0.151534]
[1738650558253,0.151523,98995.0,98987.0,0.151534]
[1738650558404,0.202016,99002.0,98973.0,0.15]
[1738650558614,0.202029,98996.0,98982.0,0.002]
[1738650558820,0.151528,98992.0,98983.0,0.15154]
[1738650559030,0.151528,98992.0,98984.0,0.151539]
[1738650559706,0.151525,98994.0,98986.0,0.151536]
[1738650559944,0.001,98996.0,98975.0,0.0013435]
[1738650560166,0.001,98996.0,98980.0,0.16449766]
[1738650560325,0.001,98996.0,98994.0,0.151523]
[1738650560535,0.151509,99004.0,98994.0,0.151523]
[1738650560727,0.151507,99005.0,98997.0,0.151519]
[1738650561049,0.151499,99010.0,98999.0,0.151516]
[1738650561253,0.201993,99013.0,98998.0,0.151517]
[1738650561633,1.5,99017.0,98998.0,4.707e-05]
[1738650561826,0.151513,99002.0,98998.0,4.707e-05]
[1738650562023,0.10249472,99016.0,98998.0,4.707e-05]
[1738650562268,0.005,99010.0,98998.0,4.707e-05]
[1738650562631,0.10249472,99016.0,98998.0,4.707e-05]
[1738650562840,0.15151,99003.0,98998.0,0.00104707]
[1738650563343,0.15151,99003.0,98998.0,4.707e-05]
[1738650563518,0.01877878,99015.0,98998.0,4.707e-05]
[1738650563658,0.201995,99013.0,98999.0,0.151516]
[1738650563870,0.151506,99006.0,98998.0,4.707e-05]
[1738650564070,0.151506,99006.0,98998.0,0.15156407]
[1738650564274,0.151515,99000.0,98998.0,4.707e-05]
[1738650565832,0.10238506,98999.0,98998.0,4.707e-05]
[1738650566041,0.155515,99000.0,98998.0,4.707e-05]
[1738650566266,0.10238506,98999.0,98998.0,4.707e-05]
[1738650566492,0.23112949,98999.0,98998.0,4.707e-05]
[1738650566696,0.33044279,98999.0,98998.0,4.707e-05]
[1738650566908,0.34924933,98999.0,98998.0,4.707e-05]
[1738650567252,0.52224933,98999.0,98998.0,4.707e-05]
[1738650567700,0.52624933,98999.0,98998.0,4.707e-05]
[1738650567898,2.02624933,98999.0,98998.0,4.707e-05]
[1738650568275,2.03524933,98999.0,98998.0,4.707e-05]
[1738650568490,1.9305916,98999.0,98998.0,4.707e-05]
[1738650568716,2.02048712,98999.0,98998.0,4.707e-05]
[1738650568874,2.02948712,98999.0,98998.0,4.707e-05]
[1738650569070,2.03848712,98999.0,98998.0,0.00104707]
[1738650569662,0.23808712,98999.0,98998.0,0.00104707]
[1738650569873,0.13570206,98999.0,98998.0,0.10343213]
[1738650570108,0.13570206,98999.0,98998.0,0.00104707]
[1738650570879,0.11689552,98999.0,98998.0,0.00104707]
[1738650571083,0.08989552,98999.0,98998.0,4.707e-05]
[1738650571247,0.09889552,98999.0,98998.0,4.707e-05]
[1738650571456,0.10789552,98999.0,98998.0,0.00104707]
[1738650571698,0.09889552,98999.0,98998.0,0.00104707]
[1738650571925,0.08989552,98999.0,98998.0,4.707e-05]
[1738650572369,0.00022471,99016.0,99011.0,0.151496]
[1738650572572,0.00022471,99016.0,98998.0,0.00104707]
[1738650572573,0.00022471,99016.0,99014.0,0.151493]
[1738650573400,0.00022471,99016.0,98998.0,0.00104707]
[1738650573758,0.151494,99014.0,99000.0,0.151515]
[1738650573959,0.15171571,99016.0,99003.0,0.15151]
[1738650574187,0.151494,99014.0,99000.0,0.20202]
[1738650574392,0.151496,99012.0,99000.0,0.20202]
[1738650574590,0.01881152,99013.0,99002.0,0.15151]
[1738650574734,0.151496,99012.0,99000.0,0.151513]
[1738650574934,0.151499,99010.0,98998.0,0.15156407]
[1738650575133,0.151502,99009.0,99000.0,0.151514]
[1738650575829,0.151507,99006.0,99000.0,0.001]
[1738650576033,0.151502,99009.0,99000.0,0.152514]
[1738650576239,0.151498,99011.0,98998.0,4.707e-05]
[1738650576441,0.151494,99014.0,99005.0,0.151506]
[1738650576862,0.151499,99011.0,99002.0,0.15151]
[1738650577705,0.00974734,99014.0,99000.0,0.203018]
[1738650577905,0.00974734,99014.0,99007.0,0.151503]
[1738650578109,0.00022471,99016.0,98998.0,0.00104707]
[1738650578324,0.00022471,99016.0,99013.0,0.151495]
[1738650578534,0.00022471,99016.0,99014.0,0.151493]
[1738650579719,0.00022471,99016.0,99014.0,0.152493]
[1738650580331,0.00022471,99016.0,99014.0,0.153493]
[1738650581128,0.00022471,99016.0,99014.0,0.152493]
[1738650581280,0.00022471,99016.0,99014.0,0.153493]
[1738650583343,0.00022471,99016.0,99015.0,0.10238506]
[1738650583616,0.00022471,99016.0,99014.0,0.153493]
[1738650584375,0.00022471,99016.0,99014.0,0.152493]
[1738650584587,0.00022471,99016.0,99015.0,0.001]
[1738650584988,0.00022471,99016.0,98999.0,0.0099283]
[1738650585199,0.00022471,99016.0,99015.0,0.001]
[1738650585881,0.00022471,99016.0,99014.0,0.152493]
[1738650586062,0.00022471,99016.0,99014.0,0.151493]
[1738650586463,0.00022471,99016.0,99010.0,0.151498]
[1738650586756,0.00022471,99016.0,99008.0,0.202002]
[1738650586978,0.00022471,99016.0,99011.0,0.151497]
[1738650587183,0.00022471,99016.0,99007.0,0.10238506]
[1738650587844,0.00022471,99016.0,99015.0,0.151492]
[1738650588729,0.00022471,99016.0,99015.0,0.152492]
[1738650588889,0.00022471,99016.0,99015.0,0.151492]
[1738650589093,0.00022471,99016.0,99015.0,0.153492]
[1738650589312,0.00022471,99016.0,99015.0,0.002]
[1738650590564,0.00022471,99016.0,99015.0,0.001]
[1738650590998,0.00022471,99016.0,99015.0,0.002]
[1738650591175,0.00022471,99016.0,99015.0,0.001]
[1738650591335,0.00022471,99016.0,99015.0,0.10338506]
[1738650591538,0.00022471,99016.0,99015.0,0.002]
[1738650595534,0.00022471,99016.0,99015.0,0.00334308]
[1738650596381,0.00022471,99016.0,99015.0,0.10572814]
[1738650596949,0.00022471,99016.0,99015.0,0.10438506]
[1738650597160,0.00022471,99016.0,99015.0,0.002]
[1738650599494,0.00022471,99016.0,99015.0,0.001]
[1738650599830,0.00022471,99016.0,99015.0,0.002]
[1738650600042,0.00022471,99016.0,99015.0,0.001]
[1738650602238,0.01541765,99016.0,99015.0,0.001]
[1738650602472,0.04522471,99016.0,99015.0,0.001]
[1738650602679,0.1489542,99016.0,99015.0,0.001]
[1738650602892,0.15888069,99016.0,98998.0,4.707e-05]
[1738650603112,0.151516,98999.0,98998.0,4.707e-05]
[1738650603550,0.17868506,99015.0,98998.0,4.707e-05]
[1738650603757,0.00022471,99016.0,99014.0,0.151493]
[1738650603964,0.00022471,99016.0,99015.0,0.00134309]
[1738650604169,0.00022471,99016.0,98999.0,0.18128506]
[1738650604374,0.00013422,99016.0,98999.0,0.18128506]
[1738650604583,0.00013422,99016.0,99015.0,0.151492]
[1738650605306,0.01901418,99016.0,99015.0,0.151492]
[1738650605732,0.01901418,99016.0,98999.0,0.10238506]
[1738650605931,0.01901418,99016.0,99000.0,0.20202]
[1738650606131,0.01901418,99016.0,99013.0,0.151495]
[1738650606332,0.01901418,99016.0,99014.0,0.151492]
[1738650606540,0.01901418,99016.0,99014.0,0.152492]
[1738650606759,0.02001418,99016.0,99014.0,0.152492]
[1738650606965,0.01887996,99015.0,99014.0,0.152492]
[1738650608005,0.01887996,99015.0,99014.0,0.151492]
[1738650608562,0.00013422,99016.0,99014.0,0.151492]
[1738650608904,0.00013422,99016.0,99014.0,0.15116767]
[1738650609782,0.00013422,99016.0,99014.0,0.15216767]
[1738650610452,0.00013422,99016.0,99001.0,0.10238506]
[1738650610644,0.151494,99014.0,99005.0,0.151506]
[1738650610833,0.00013422,99016.0,99001.0,0.10238506]
[1738650611051,0.00013422,99016.0,99011.0,0.151496]
[1738650611233,0.00013422,99016.0,99004.0,0.202012]
[1738650611435,0.00013422,99016.0,99010.0,0.151499]
[1738650611957,0.01890169,99015.0,99013.0,0.151494]
[1738650612606,0.01890169,99015.0,99010.0,0.151498]
[1738650612811,0.01890169,99014.0,99010.0,0.151498]
[1738650613617,0.01890169,99014.0,99010.0,0.001]
[1738650613842,0.01890169,99013.0,99012.0,0.151495]
[1738650615408,0.01890169,99013.0,99012.0,0.152495]
[1738650616828,0.00013422,99016.0,99013.0,0.15]
[1738650616995,0.00013422,99016.0,99015.0,0.151492]
[1738650617322,0.00013422,99016.0,99015.0,0.25387706]
[1738650617874,0.00013422,99016.0,99015.0,0.40387706]
[1738650618713,0.00013422,99016.0,99015.0,0.41387706]
[1738650618913,0.00013422,99016.0,99015.0,0.43629749]
[1738650619699,0.00013422,99016.0,99015.0,0.67635112]
[1738650620119,0.00013422,99016.0,99015.0,0.75355112]
[1738650620741,0.00013422,99016.0,99015.0,0.75255112]
[1738650620943,0.00013422,99016.0,99015.0,0.75355112]
[1738650621294,2.2e-07,99016.0,99015.0,0.76355112]
[1738650621505,2.2e-07,99016.0,99015.0,0.78805112]
[1738650621932,2.2e-07,99016.0,99015.0,0.78905112]
[1738650622926,9.3e-07,99021.0,99020.0,0.311484]
[1738650623290,9.3e-07,99021.0,99020.0,0.40386906]
[1738650624137,9.3e-07,99021.0,99020.0,0.40486906]
[1738650624772,9.3e-07,99021.0,99020.0,0.40386906]
[1738650625201,9.3e-07,99021.0,99020.0,0.40486906]
[1738650626613,9.3e-07,99021.0,99020.0,0.40386906]
[1738650626850,9.3e-07,99021.0,99020.0,0.40486906]
[1738650627026,9.3e-07,99021.0,99020.0,0.68486906]
[1738650627320,9.3e-07,99021.0,99020.0,0.93392269]
[1738650627794,9.3e-07,99021.0,99020.0,0.93492269]
[1738650628201,9.3e-07,99021.0,99020.0,0.93392269]
[1738650628635,9.3e-07,99021.0,99020.0,0.96792269]
[1738650628865,9.3e-07,99021.0,99020.0,1.04422269]
[1738650629020,9.3e-07,99021.0,99020.0,1.06972269]
[1738650629832,9.3e-07,99021.0,99020.0,1.06872269]
[1738650630235,9.3e-07,99021.0,99020.0,1.06972269]
[1738650630446,0.00022491,99037.0,99036.0,0.0964]
[1738650630827,0.00022491,99037.0,99036.0,0.77329869]
[1738650631220,9.1e-07,99037.0,99036.0,0.77329869]
[1738650631802,5.9e-07,99037.0,99036.0,1.31589869]
[1738650632363,5.9e-07,99037.0,99036.0,1.31824115]
[1738650632759,0.00022471,99060.0,99059.0,0.393424]
[1738650632957,0.00022471,99060.0,99059.0,0.76890976]
[1738650633446,7.1e-07,99060.0,99059.0,0.76890976]
[1738650633655,7.1e-07,99060.0,99059.0,0.79440976]
[1738650633856,7.1e-07,99060.0,99059.0,0.79675222]
[1738650634237,7.1e-07,99060.0,99059.0,0.80775222]
[1738650634499,7.1e-07,99060.0,99059.0,1.35035222]
[1738650634704,7.1e-07,99060.0,99059.0,1.35683156]
[1738650634906,7.1e-07,99060.0,99059.0,0.81423156]
[1738650635113,7.1e-07,99060.0,99059.0,0.78973156]
[1738650635313,7.1e-07,99060.0,99059.0,0.78773156]
[1738650636301,7.1e-07,99060.0,99059.0,0.78673156]
[1738650636725,7.1e-07,99060.0,99059.0,0.78773156]
[1738650637290,7.1e-07,99060.0,99059.0,0.78673156]
[1738650637493,7.1e-07,99060.0,99059.0,0.78773156]
[1738650637809,7.1e-07,99060.0,99059.0,1.33033156]
[1738650638230,7.1e-07,99060.0,99059.0,1.32933156]
[1738650640172,7.1e-07,99060.0,99059.0,1.33033156]
[1738650640760,7.1e-07,99060.0,99059.0,1.32933156]
[1738650641166,7.1e-07,99060.0,99059.0,1.33033156]
[1738650641565,6.2e-07,99073.0,99072.0,0.311405]
[1738650641765,3.3e-07,99083.0,99082.0,0.344389]
[1738650642023,3.3e-07,99083.0,99082.0,0.68682769]
[1738650642199,3.3e-07,99083.0,99082.0,1.22942769]
[1738650642396,3.3e-07,99083.0,99082.0,1.28545091]
[1738650642602,3.3e-07,99083.0,99082.0,1.28374314]
[1738650643005,3.3e-07,99083.0,99082.0,1.35884314]
[1738650643911,3.3e-07,99083.0,99082.0,1.30281992]
[1738650644105,3.3e-07,99083.0,99082.0,1.29281992]
[1738650644310,3.3e-07,99083.0,99082.0,1.29781506]